fUST/lending_fUST_20240215
["ID","MTS","AMOUNT","RATE_DAILY","PERIOD"]
[314102673,1707981038703,-500.0,0.00035616,14]
[314102675,1707981038712,-500.0,0.00035616,14]
[314102676,1707981038721,-500.0,0.00035616,14]
[314102677,1707981038730,-500.0,0.00035616,14]
[314102678,1707981038739,-500.0,0.00035616,14]
[314102679,1707981038748,-500.0,0.00035616,14]
[314102680,1707981038757,-1966.41,0.00035616,7]
[314102681,1707981038766,-500.0,0.00035616,14]
[314102682,1707981038775,-500.0,0.00035616,14]
[314102683,1707981038784,-517.39206153,0.00035616,14]
[314102684,1707981038793,-500.0,0.00035616,14]
[314102685,1707981038803,-500.0,0.00035616,14]
[314102686,1707981038813,-500.0,0.00035616,2]
[314102687,1707981038822,-500.0,0.00035616,14]
[314102688,1707981038830,-513.66558092,0.00035616,14]
[314102689,1707981038840,-500.0,0.00035616,14]
[314102690,1707981038849,-343.63079016,0.00035616,14]
[314102691,1707981038858,-285.50953037,0.00035616,14]
[314102692,1707981038867,-510.46755575,0.00035616,14]
[314102693,1707981038876,-500.0,0.00035616,14]
[314102694,1707981038885,-500.0,0.00035616,14]
[314102696,1707981038894,-195.99445327,0.00035616,14]
[314102698,1707981038903,-500.0,0.00035616,14]
[314102700,1707981038912,-500.0,0.00035616,14]
[314102702,1707981038921,-500.0,0.00035616,2]
[314102704,1707981038930,-500.0,0.00035616,14]
[314102706,1707981038939,-500.0,0.00035616,14]
[314102708,1707981038948,-500.0,0.00035616,14]
[314102710,1707981038957,-500.0,0.00035616,14]
[314102712,1707981038966,-500.0,0.00035616,14]
[314102714,1707981038975,-644.72,0.00035616,14]
[314102716,1707981038985,-184.23353177,0.00035616,14]
[314102718,1707981038994,-514.93351127,0.00035616,14]
[314102720,1707981039002,-500.0,0.00035616,14]
[314102722,1707981039012,-500.0,0.00035616,14]
[314102724,1707981039021,-500.0,0.00035616,14]
[314102726,1707981039030,-500.0,0.00035616,14]
[314102728,1707981039039,-516.94149683,0.00035616,14]
[314102730,1707981039049,-500.0,0.00035616,14]
[314102732,1707981039058,-541.69581236,0.00035616,14]
[314102734,1707981039067,-1017.96,0.00035616,14]
[314102736,1707981039076,-825.09,0.00035616,14]
[314102738,1707981039086,-507.8299765,0.00035616,14]
[314102740,1707981039095,-500.0,0.00035616,14]
[314102742,1707981039104,-500.0,0.00035616,14]
[314102744,1707981039113,-500.0,0.00035616,14]
[314102746,1707981039122,-607.78,0.00035616,14]
[314102748,1707981039131,-506.57653874,0.00035616,14]
[314102750,1707981039142,-501.74485484,0.00035616,14]
[314102752,1707981039150,-500.0,0.00035616,14]
[314102754,1707981039160,-500.0,0.00035616,14]
[314102756,1707981039169,-726.79,0.00035616,14]
[314102758,1707981039179,-558.56,0.00035616,14]
[314102760,1707981039188,-511.96,0.00035616,14]
[314102762,1707981039197,-557.04962915,0.00035616,14]
[314102764,1707981039207,-500.0,0.00035616,2]
[314102765,1707981039217,-500.0,0.00035616,14]
[314102767,1707981039227,-401.84311323,0.00035616,14]
[314102769,1707981039236,-500.0,0.00035616,14]
[314102771,1707981039246,-495.88183261,0.00035616,14]
[314102773,1707981039255,-1172.51,0.00035616,14]
[314102775,1707981039264,-500.0,0.00035616,14]
[314102777,1707981039274,-266.15669203,0.00035616,14]
[314102778,1707981039283,-500.0,0.00035616,14]
[314102780,1707981039292,-489.82980321,0.00035616,14]
[314102782,1707981039301,-212.18676146,0.00035616,14]
[314102784,1707981039310,-500.0,0.00035616,14]
[314102786,1707981039319,-500.0,0.00035616,14]
[314102788,1707981039329,-500.0,0.00035616,14]
[314102790,1707981039339,-1778.02,0.00035616,14]
[314102792,1707981039348,-500.0,0.00035616,14]
[314102794,1707981039357,-500.0,0.00035616,14]
[314102796,1707981039366,-500.0,0.00035616,14]
[314102798,1707981039375,-500.0,0.00035616,14]
[314102800,1707981039384,-1220.8,0.00035616,14]
[314102802,1707981039393,-15301.78,0.00035616,14]
[314102804,1707981039402,-500.0,0.00035616,14]
[314102806,1707981039411,-597.93,0.00035616,14]
[314102808,1707981039421,-500.0,0.00035616,14]
[314102810,1707981039433,-500.0,0.00035616,14]
[314102812,1707981039442,-583.6952767,0.00035616,14]
[314102814,1707981039451,-500.0,0.00035616,14]
[314102816,1707981039461,-1376.46,0.00035616,14]
[314102818,1707981039470,-500.0,0.00035616,14]
[314102820,1707981039480,-500.0,0.00035616,14]
[314102822,1707981039489,-14758.37,0.00035616,14]
[314102824,1707981039500,-2170.15,0.00035616,14]
[314102826,1707981039510,-925.91,0.00035616,14]
[314102828,1707981039518,-500.0,0.00035616,14]
[314102830,1707981039527,-401.6398544,0.00035616,14]
[314102832,1707981039536,-4881.8,0.00035616,14]
[314102834,1707981039545,-500.0,0.00035616,14]
[314102835,1707981039554,-537.0742866,0.00035616,14]
[314102837,1707981039563,-500.0,0.00035616,14]
[314102846,1707981039637,-2091.26,0.00035616,14]
[314102848,1707981039648,-512.21825011,0.00035616,14]
[314102850,1707981039657,-1436.48,0.00035616,14]
[314102852,1707981039666,-1000.0,0.00035616,2]
[314102854,1707981039675,-375.44487099,0.00035616,14]
[314102856,1707981039684,-500.0,0.00035616,14]
[314102858,1707981039694,-504.24519245,0.00035616,14]
[314102860,1707981039703,-500.0,0.00035616,14]
[314102862,1707981039712,-442.04517344,0.00035616,14]
[314102864,1707981039720,-1680.76,0.00035616,14]
[314102866,1707981039729,-500.0,0.00035616,14]
[314102868,1707981039738,-500.0,0.00035616,14]
[314102870,1707981039747,-14793.34,0.00035616,14]
[314102871,1707981039756,-500.0,0.00035616,14]
[314102873,1707981039764,-500.0,0.00035616,14]
[314102875,1707981039773,-500.0,0.00035616,14]
[314102877,1707981039782,-500.0,0.00035616,14]
[314102879,1707981039791,-500.0,0.00035616,14]
[314102881,1707981039800,-500.0,0.00035616,14]
[314102883,1707981039810,-500.0,0.00035616,14]
[314102885,1707981039819,-500.0,0.00035616,14]
[314102887,1707981039828,-536.17297969,0.00035616,14]
[314102889,1707981039837,-315.01598404,0.00035616,14]
[314102891,1707981039847,-542.81677724,0.00035616,14]
[314102893,1707981039855,-500.0,0.00035616,14]
[314102895,1707981039865,-500.0,0.00035616,2]
[314102896,1707981039874,-528.03076737,0.00035616,14]
[314102898,1707981039883,-500.0,0.00035616,14]
[314102900,1707981039892,-804.88,0.00035616,14]
[314102902,1707981039902,-500.0,0.00035616,14]
[314102904,1707981039911,-1372.46,0.00035616,14]
[314102906,1707981039920,-503.4400308,0.00035616,14]
[314102908,1707981039929,-500.0,0.00035616,14]
[314102910,1707981039938,-505.73434112,0.00035616,14]
[314102912,1707981039947,-8131.47,0.00035616,14]
[314102914,1707981039956,-500.0,0.00035616,14]
[314102916,1707981039966,-7679.29,0.00035616,14]
[314102918,1707981039974,-510.79586648,0.00035616,14]
[314102920,1707981039984,-500.0,0.00035616,14]
[314102922,1707981039993,-500.0,0.00035616,2]
[314102924,1707981040002,-500.0,0.00035616,14]
[314102926,1707981040011,-564.36544628,0.00035616,14]
[314102928,1707981040020,-500.0,0.00035616,14]
[314102931,1707981040029,-500.0,0.00035616,14]
[314102933,1707981040039,-500.0,0.00035616,14]
[314102935,1707981040048,-2453.96,0.00035616,14]
[314102937,1707981040057,-500.0,0.00035616,14]
[314102939,1707981040066,-500.0,0.00035616,14]
[314102941,1707981040075,-500.0,0.00035616,14]
[314102943,1707981040084,-500.0,0.00035616,14]
[314102945,1707981040093,-500.0,0.00035616,14]
[314102947,1707981040102,-500.0,0.00035616,14]
[314102949,1707981040111,-544.11636985,0.00035616,14]
[314102951,1707981040120,-220.0,0.00035616,2]
[314102953,1707981040129,-14813.06,0.00035616,14]
[314102955,1707981040140,-500.0,0.00035616,14]
[314102957,1707981040149,-311.37712662,0.00035616,14]
[314102959,1707981040158,-500.0,0.00035616,14]
[314102961,1707981040167,-500.0,0.00035616,14]
[314102963,1707981040176,-26193.43,0.00035616,14]
[314102965,1707981040185,-574.18027158,0.00035616,14]
[314102967,1707981040194,-500.0,0.00035616,14]
[314102969,1707981040203,-500.0,0.00035616,14]
[314102971,1707981040213,-500.0,0.00035616,7]
[314102972,1707981040222,-500.0,0.00035616,14]
[314102974,1707981040232,-2135.78,0.00035616,14]
[314102976,1707981040242,-500.0,0.00035616,14]
[314102978,1707981040251,-500.0,0.00035616,14]
[314102980,1707981040259,-648.82,0.00035616,14]
[314102982,1707981040268,-506.21858276,0.00035616,14]
[314102984,1707981040277,-500.0,0.00035616,14]
[314102986,1707981040286,-503.20204968,0.00035616,14]
[314102988,1707981040295,-994.01,0.00035616,14]
[314102990,1707981040304,-500.0,0.00035616,14]
[314102992,1707981040313,-500.0,0.00035616,14]
[314102994,1707981040322,-1980.25,0.00035616,14]
[314102996,1707981040331,-500.0,0.00035616,14]
[314102998,1707981040340,-500.0,0.00035616,14]
[314103000,1707981040349,-500.0,0.00035616,14]
[314103002,1707981040358,-500.0,0.00035616,14]
[314103004,1707981040367,-786.92,0.00035616,14]
[314103006,1707981040376,-500.0,0.00035616,14]
[314103008,1707981040385,-3246.78,0.00035616,14]
[314103010,1707981040394,-500.0,0.00035616,14]
[314103012,1707981040403,-2371.77,0.00035616,14]
[314103014,1707981040414,-403.79557639,0.00035616,14]
[314103016,1707981040426,-6942.0,0.00035653,3]
[314103018,1707981040436,-500.0,0.00035752,14]
[314103020,1707981040445,-500.0,0.00035753,7]
[314103022,1707981040454,-500.0,0.00035753,14]
[314103024,1707981040463,-500.0,0.00035753,7]
[314103025,1707981040473,-502.57460696,0.00035753,7]
[314103028,1707981040482,-500.0,0.00035753,14]
[314103029,1707981040491,-500.0,0.00035753,14]
[314103031,1707981040500,-500.0,0.00035753,14]
[314103033,1707981040509,-632.37272132,0.00035753,14]
[314103035,1707981040518,-500.0,0.00035753,14]
[314103037,1707981040527,-340.40376875,0.00035753,14]
[314103039,1707981040537,-500.0,0.00035753,14]
[314103041,1707981040546,-574.41874669,0.00035753,14]
[314103043,1707981040555,-500.0,0.00035753,14]
[314103045,1707981040564,-500.0,0.00035753,14]
[314103047,1707981040573,-518.53236624,0.00035753,2]
[314103049,1707981040581,-511.2,0.00035753,14]
[314103051,1707981040590,-500.0,0.00035753,14]
[314103053,1707981040599,-500.0,0.00035753,14]
[314103055,1707981040608,-500.92600228,0.00035753,14]
[314103057,1707981040617,-500.0,0.00035753,14]
[314103059,1707981040626,-500.0,0.00035753,14]
[314103061,1707981040636,-500.0,0.00035753,14]
[314103064,1707981040646,-509.53419309,0.00035753,14]
[314103066,1707981040656,-500.0,0.00035753,14]
[314103067,1707981040665,-500.0,0.00035753,14]
[314103069,1707981040673,-500.0,0.00035753,14]
[314103071,1707981040682,-500.0,0.00035753,14]
[314103073,1707981040691,-500.0,0.00035753,14]
[314103075,1707981040701,-1966.41,0.00035753,7]
[314103077,1707981040711,-500.0,0.00035753,14]
[314103079,1707981040721,-500.0,0.00035753,14]
[314103081,1707981040730,-500.0,0.00035753,14]
[314103083,1707981040739,-500.0,0.00035753,2]
[314103085,1707981040748,-595.82440495,0.00035753,14]
[314103087,1707981040757,-500.0,0.00035753,14]
[314103089,1707981040766,-500.0,0.00035753,14]
[314103091,1707981040775,-569.62856393,0.00035753,14]
[314103093,1707981040784,-500.0,0.00035753,14]
[314103095,1707981040793,-500.0,0.00035753,14]
[314103097,1707981040802,-170.56767808,0.00035753,2]
[314103099,1707981040811,-575.26411866,0.00035753,14]
[314103101,1707981040820,-500.0,0.00035753,14]
[314103103,1707981040829,-505.07339131,0.00035753,14]
[314103105,1707981040838,-500.0,0.00035753,14]
[314103107,1707981040848,-500.0,0.00035753,14]
[314103109,1707981040857,-644.72,0.00035753,14]
[314103111,1707981040867,-547.99777768,0.00035753,14]
[314103113,1707981040875,-500.0,0.00035753,14]
[314103115,1707981040884,-500.0,0.00035753,14]
[314103117,1707981040893,-500.0,0.00035753,14]
[314103119,1707981040903,-500.0,0.00035753,14]
[314103121,1707981040911,-1017.96,0.00035753,14]
[314103123,1707981040921,-825.09,0.00035753,14]
[314103125,1707981040930,-220.52929558,0.00035753,14]
[314103127,1707981040939,-500.0,0.00035753,14]
[314103128,1707981040948,-500.0,0.00035753,14]
[314103130,1707981040957,-607.78,0.00035753,14]
[314103132,1707981040966,-500.0,0.00035753,14]
[314103134,1707981040975,-500.0,0.00035753,14]
[314103136,1707981040985,-726.79,0.00035753,14]
[314103138,1707981040994,-558.56,0.00035753,14]
[314103140,1707981041003,-511.96,0.00035753,14]
[314103142,1707981041011,-500.0,0.00035753,2]
[314103144,1707981041020,-500.0,0.00035753,14]
[314103146,1707981041029,-500.0,0.00035753,14]
[314103148,1707981041038,-1172.51,0.00035753,14]
[314103150,1707981041048,-529.90121524,0.00035753,14]
[314103152,1707981041057,-500.0,0.00035753,14]
[314103154,1707981041066,-500.0,0.00035753,14]
[314103156,1707981041075,-500.0,0.00035753,14]
[314103158,1707981041084,-1778.02,0.00035753,14]
[314103160,1707981041093,-500.0,0.00035753,14]
[314103162,1707981041103,-508.26930953,0.00035753,14]
[314103164,1707981041112,-500.0,0.00035753,14]
[314103165,1707981041122,-500.0,0.00035753,14]
[314103167,1707981041131,-1220.8,0.00035753,14]
[314103169,1707981041140,-15301.78,0.00035753,14]
[314103178,1707981041213,-502.53956151,0.00035753,14]
[314103180,1707981041224,-597.93,0.00035753,14]
[314103182,1707981041233,-500.0,0.00035753,14]
[314103184,1707981041242,-500.0,0.00035753,14]
[314103186,1707981041252,-1376.46,0.00035753,14]
[314103188,1707981041261,-500.0,0.00035753,14]
[314103190,1707981041270,-500.0,0.00035753,14]
[314103192,1707981041279,-500.0,0.00035753,14]
[314103194,1707981041288,-14758.37,0.00035753,14]
[314103196,1707981041297,-2170.15,0.00035753,14]
[314103198,1707981041306,-925.91,0.00035753,14]
[314103200,1707981041315,-4881.8,0.00035753,14]
[314103202,1707981041325,-500.0,0.00035753,14]
[314103204,1707981041334,-2091.26,0.00035753,14]
[314103206,1707981041343,-1436.48,0.00035753,14]
[314103208,1707981041352,-1005.42571822,0.00035753,2]
[314103210,1707981041361,-500.0,0.00035753,14]
[314103212,1707981041370,-1680.76,0.00035753,14]
[314103214,1707981041379,-500.0,0.00035753,14]
[314103216,1707981041388,-500.0,0.00035753,14]
[314103218,1707981041397,-14793.34,0.00035753,14]
[314103220,1707981041407,-500.0,0.00035753,14]
[314103222,1707981041417,-500.0,0.00035753,2]
[314103224,1707981041430,-804.88,0.00035753,14]
[314103226,1707981041439,-648.0,0.00035753,14]
[314103228,1707981041448,-1372.46,0.00035753,14]
[314103230,1707981041458,-500.0,0.00035753,14]
[314103232,1707981041467,-8131.47,0.00035753,14]
[314103234,1707981041476,-500.0,0.00035753,14]
[314103236,1707981041485,-7679.29,0.00035753,14]
[314103238,1707981041495,-2453.96,0.00035753,14]
[314103240,1707981041504,-500.0,0.00035753,14]
[314103242,1707981041514,-220.0,0.00035753,2]
[314103244,1707981041524,-14813.06,0.00035753,14]
[314103246,1707981041533,-500.0,0.00035753,14]
[314103248,1707981041542,-499.89077347,0.00035753,14]
[314103250,1707981041551,-500.0,0.00035753,14]
[314103252,1707981041560,-26193.43,0.00035753,14]
[314103253,1707981041568,-500.0,0.00035753,14]
[314103255,1707981041578,-500.0,0.00035753,14]
[314103257,1707981041590,-500.0,0.00035753,7]
[314103259,1707981041600,-2135.78,0.00035753,14]
[314103262,1707981041609,-500.0,0.00035753,14]
[314103263,1707981041618,-500.0,0.00035753,14]
[314103265,1707981041627,-648.82,0.00035753,14]
[314103267,1707981041636,-500.0,0.00035753,14]
[314103269,1707981041645,-994.01,0.00035753,14]
[314103271,1707981041654,-500.0,0.00035753,14]
[314103273,1707981041663,-500.0,0.00035753,14]
[314103275,1707981041672,-1980.25,0.00035753,14]
[314103277,1707981041681,-500.0,0.00035753,14]
[314103280,1707981041690,-500.0,0.00035753,14]
[314103281,1707981041700,-500.0,0.00035753,14]
[314103283,1707981041709,-786.92,0.00035753,14]
[314103285,1707981041718,-500.0,0.00035753,14]
[314103287,1707981041726,-3246.78,0.00035753,14]
[314103289,1707981041736,-500.0,0.00035753,14]
[314103291,1707981041745,-2371.77,0.00035753,14]
[314103294,1707981041755,-500.0,0.00035789,15]
[314103296,1707981041764,-596.70127433,0.00035789,15]
[314103298,1707981041774,-500.0,0.00035789,15]
[314103300,1707981041783,-197.33585836,0.00035789,15]
[314103302,1707981041792,-500.0,0.00035789,15]
[314103303,1707981041802,-642.82389763,0.00035789,15]
[314103305,1707981041811,-409.87247855,0.00035789,15]
[314103307,1707981041820,-500.0,0.00035789,15]
[314103309,1707981041829,-500.0,0.00035789,15]
[314103311,1707981041838,-546.21000904,0.00035789,15]
[314103313,1707981041847,-500.0,0.00035789,15]
[314103315,1707981041856,-500.0,0.00035789,15]
[314103317,1707981041865,-500.0,0.00035789,15]
[314103319,1707981041874,-500.0,0.00035789,15]
[314103321,1707981041883,-500.0,0.00035789,15]
[314103323,1707981041892,-500.0,0.00035789,15]
[314103325,1707981041901,-500.0,0.00035789,15]
[314103328,1707981041914,-539.02217487,0.00035789,15]
[314103330,1707981041928,-500.0,0.00035789,15]
[314103333,1707981041942,-500.0,0.00035789,15]
[314103335,1707981041955,-500.0,0.00035789,15]
[314103337,1707981041965,-500.0,0.00035789,15]
[314103338,1707981041979,-500.0,0.00035789,15]
[314103339,1707981041992,-500.0,0.00035789,15]
[314103340,1707981042006,-422.20377824,0.0003579,7]
[314103341,1707981042021,-422.20377824,0.0003579,7]
[314103342,1707981042034,-422.20377824,0.0003579,7]
[314103343,1707981042046,-422.20377824,0.0003579,7]
[314103344,1707981042058,-422.20377824,0.0003579,7]
[314103345,1707981042071,-422.20377824,0.0003579,7]
[314103346,1707981042084,-422.20377824,0.0003579,7]
[314103347,1707981042096,-422.20377824,0.0003579,7]
[314103348,1707981042108,-422.20377824,0.0003579,7]
[314103349,1707981042122,-422.20377824,0.0003579,7]
[314103350,1707981042134,-422.20377824,0.0003579,7]
[314103351,1707981042144,-422.20377824,0.0003579,7]
[314103352,1707981042158,-422.20377824,0.0003579,7]
[314103353,1707981042171,-422.20377824,0.0003579,7]
[314103354,1707981042186,-422.20377824,0.0003579,7]
[314103355,1707981042198,-422.20377824,0.0003579,7]
[314103356,1707981042210,-422.20377824,0.0003579,7]
[314103358,1707981042224,-422.20377824,0.0003579,7]
[314103360,1707981042236,-422.20377824,0.0003579,7]
[314103362,1707981042248,-422.2,0.0003579,7]
[314103364,1707981042262,-1688.81511295,0.0003579,7]
[314103367,1707981042276,-1688.81511295,0.0003579,7]
[314103368,1707981042292,-1688.81511295,0.0003579,7]
[314103370,1707981042332,-1688.81511295,0.0003579,7]
[314103372,1707981042342,-1688.81511295,0.0003579,7]
[314103374,1707981042352,-1688.81511295,0.0003579,7]
[314103376,1707981042364,-1688.81511295,0.0003579,7]
[314103378,1707981042377,-1688.81511295,0.0003579,7]
[314103379,1707981042388,-1688.81511295,0.0003579,7]
[314103382,1707981042401,-447.77505538,0.0003579,7]
[314103384,1707981042576,-1241.04005757,0.0003579,7]
[314103385,1707981042587,-1688.81511295,0.0003579,7]
[314103386,1707981042597,-1688.81511295,0.0003579,7]
[314103387,1707981042607,-1688.81511295,0.0003579,7]
[314103388,1707981042616,-193.87,0.0003579,7]
[314103389,1707981042625,-155.10088306,0.0003579,7]
[314103390,1707981042635,-155.10088306,0.0003579,7]
[314103391,1707981042644,-155.10088306,0.0003579,7]
[314103392,1707981042653,-190.32184802,0.0003579,7]
[314103393,1707981042662,-190.32184802,0.0003579,7]
[314103396,1707981042672,-190.32,0.0003579,7]
[314103397,1707981042682,-152.25747841,0.0003579,7]
[314103400,1707981042693,-152.25747841,0.0003579,7]
[314103402,1707981042702,-152.25747841,0.0003579,7]
[314103416,1707981042825,-152.25747841,0.0003579,7]
[314103419,1707981042837,-152.25747841,0.0003579,7]
[314103420,1707981042846,-152.25747841,0.0003579,7]
[314103421,1707981042856,-152.25747841,0.0003579,7]
[314103422,1707981042864,-152.25747841,0.0003579,7]
[314103423,1707981042874,-152.25747841,0.0003579,7]
[314103424,1707981042883,-177.99860633,0.0003579,7]
[314103426,1707981042892,-177.99860633,0.0003579,7]
[314103428,1707981042901,-177.99860633,0.0003579,7]
[314103430,1707981042910,-177.99860633,0.0003579,7]
[314103432,1707981042919,-177.99,0.0003579,7]
[314103434,1707981042928,-177.99860633,0.0003579,7]
[314103436,1707981042937,-177.99860633,0.0003579,7]
[314103438,1707981042946,-177.99860633,0.0003579,7]
[314103440,1707981042955,-177.99860633,0.0003579,7]
[314103442,1707981042964,-177.99860633,0.0003579,7]
[314103444,1707981042973,-177.99860633,0.0003579,7]
[314103446,1707981042983,-177.99860633,0.0003579,7]
[314103447,1707981042993,-177.99860633,0.0003579,7]
[314103449,1707981043002,-177.99860633,0.0003579,7]
[314103451,1707981043011,-177.99860633,0.0003579,7]
[314103452,1707981043020,-177.99860633,0.0003579,7]
[314103454,1707981043030,-177.99860633,0.0003579,7]
[314103456,1707981043039,-177.99860633,0.0003579,7]
[314103457,1707981043048,-1000.0,0.000358,2]
[314103459,1707981043057,-152.25747841,0.0003584,7]
[314103461,1707981043066,-905.64663402,0.00035881,2]
[314103497,1707981043970,-250.0,0.00035082,2]
[314103499,1707981043979,-500.0,0.00035616,14]
[314103501,1707981043989,-689.83,0.00035743,3]
[314103503,1707981043998,-231.98,0.00035752,2]
[314103505,1707981044007,-394.21053045,0.00035753,14]
[314103561,1707982231980,-4202.15,0.0002499,3]
[314103562,1707982231990,-3501.79,0.0002499,3]
[314103564,1707982232000,-117869.37126974,0.00025,15]
[314103565,1707982232009,-150.84003067,0.00026149,2]
[314103566,1707982232019,-200.0,0.00026249,15]
[314103567,1707982232029,-150.84003067,0.00028314,2]
[314103568,1707982232038,-280.0,0.00028874,15]
[314103569,1707982232048,-20067.23625941,0.00029438,2]
[314103586,1707982237988,-500.0,0.00029437,2]
[314103587,1707982237998,-183.61581775,0.00029437,2]
[314103588,1707982238008,-500.0,0.00029437,2]
[314103589,1707982238017,-241.81295279,0.00029437,2]
[314103590,1707982238026,-209.90373626,0.00029437,2]
[314103591,1707982238035,-282.81860053,0.00029437,2]
[314103592,1707982238048,-217.18139947,0.00029437,2]
[314103593,1707982238057,-101.75957755,0.00029437,2]
[314103594,1707982238070,-163.8142091,0.00029437,2]
[314103595,1707982238079,-500.0,0.00029437,2]
[314103596,1707982238088,-500.0,0.00029437,2]
[314103597,1707982238098,-513.61772715,0.00029437,2]
[314103598,1707982238107,-500.0,0.00029437,2]
[314103599,1707982238117,-500.0,0.00029437,2]
[314103600,1707982238126,-500.0,0.00029437,2]
[314103601,1707982238135,-500.0,0.00029437,2]
[314103602,1707982238145,-500.0,0.00029437,2]
[314103603,1707982238154,-500.0,0.00029437,2]
[314103604,1707982238163,-500.0,0.00029437,2]
[314103605,1707982238173,-500.0,0.00029437,2]
[314103606,1707982238182,-500.0,0.00029437,2]
[314103607,1707982238192,-500.0,0.00029437,2]
[314103608,1707982238203,-642.36967018,0.00029437,2]
[314103609,1707982238212,-500.0,0.00029437,2]
[314103610,1707982238220,-500.0,0.00029437,2]
[314103611,1707982238229,-500.0,0.00029437,2]
[314103612,1707982238238,-500.0,0.00029437,2]
[314103613,1707982238247,-500.0,0.00029437,2]
[314103614,1707982238256,-500.0,0.00029437,2]
[314103615,1707982238265,-500.0,0.00029437,2]
[314103616,1707982238275,-500.0,0.00029437,2]
[314103617,1707982238284,-500.0,0.00029437,2]
[314103618,1707982238293,-500.0,0.00029437,2]
[314103619,1707982238302,-500.0,0.00029437,2]
[314103620,1707982238311,-500.0,0.00029437,2]
[314103621,1707982238321,-500.0,0.00029437,2]
[314103622,1707982238330,-500.0,0.00029437,2]
[314103623,1707982238340,-500.0,0.00029437,2]
[314103624,1707982238349,-500.0,0.00029437,2]
[314103625,1707982238359,-500.0,0.00029437,2]
[314103626,1707982238368,-500.0,0.00029437,2]
[314103627,1707982238377,-500.0,0.00029437,2]
[314103628,1707982238387,-440.03680402,0.00029437,2]
[314103629,1707982238396,-500.0,0.00029437,2]
[314103630,1707982238407,-500.0,0.00029437,2]
[314103631,1707982238417,-500.0,0.00029437,2]
[314103632,1707982238426,-500.0,0.00029437,2]
[314103633,1707982238435,-500.0,0.00029437,2]
[314103634,1707982238445,-4832.76374059,0.00029438,2]
[314103635,1707982238454,-181.0199703,0.00029694,2]
[314103636,1707982238464,-167.383978,0.0002999,2]
[314103637,1707982238473,-190.0,0.0003,2]
[314103638,1707982238482,-150.84003067,0.0003048,2]
[314103639,1707982238492,-170.087338,0.00030708,2]
[314103640,1707982238501,-155.0,0.00031543,2]
[314103641,1707982238600,-391.0,0.00031761,15]
[314103642,1707982238610,-250.0,0.00032542,2]
[314103643,1707982238619,-57034.54118236,0.00032543,5]
[314103644,1707982238629,-426.4980594,0.00032563,5]
[314103645,1707982238638,-150.84003067,0.00032645,2]
[314103646,1707982238647,-155.0,0.00032913,2]
[314103647,1707982238656,-163.0,0.00033,2]
[314103648,1707982238665,-190.0,0.00033,2]
[314103649,1707982238675,-500.0,0.00033227,2]
[314103650,1707982238684,-186.16413673,0.00033553,2]
[314103651,1707982238693,-533.37551866,0.00033653,2]
[314103652,1707982238703,-250.0,0.00033912,2]
[314103653,1707982238712,-151.0226534,0.00033965,7]
[314103654,1707982238721,-167.383978,0.00034078,2]
[314103655,1707982238735,-155.0,0.00034283,2]
[314103656,1707982238744,-163.0,0.00034521,2]
[314103657,1707982238753,-151.0226534,0.00034658,4]
[314103658,1707982238762,-150.84003067,0.0003481,2]
[314103659,1707982238771,-14571.35950289,0.00034898,14]
[314103660,1707982238782,-276000.0,0.000349,2]